Cogmind - Beta 13 @@@ ROGUE MODE // 2024.03.31 @ 16:35:21 Player: f_ Result: Self-destructed Performance ------------- Evolutions (1) 500 Regions Visited (3) 600 Robots Destroyed (24) 120 Value Destroyed (637) 637 Prototype IDs (2) 40 Alien Tech Used (0) 0 Bonus (0) 0 TOTAL SCORE: 1897 Bonus ------- None Cogmind --------- Core Integrity 146/400 Matter 267/300 Energy 100/100 System Corruption 0% Temperature Cool (0) Movement Walking (330) Ox3 Location -9/Materials Parts ------- > --- POWER (1) -------- (None) > --- PROPULSION (2) --- Aluminum Leg > --- UTILITY (4) ------ Small Storage Unit Large Storage Unit > --- WEAPON (2) ------- Improved Medium Laser Advanced Beam Cannon > --- INVENTORY (15) --- Light Armor Plating Small Laser Improved Medium Laser Datajack Maul Peak State ------------ > --- POWER ------------ (None) > --- PROPULSION ------- Aluminum Leg > --- UTILITY ---------- Small Storage Unit Large Storage Unit > --- WEAPON ----------- Improved Medium Laser Advanced Beam Cannon > --- INVENTORY -------- Light Armor Plating Small Laser Improved Medium Laser Datajack Maul [Rating: 9] Favorites ----------- Power Light Ion Engine Engine Light Ion Engine Propulsion Wheel Leg Aluminum Leg Wheel Wheel Utility Small Storage Unit Storage Small Storage Unit Weapon Improved Medium Laser Energy Gun Improved Medium Laser Energy Cannon Advanced Beam Cannon Launcher Grenade Launcher Impact Weapon Maul Build | -11 -10 -10 -9 ------- Run | Yrd Mat Min Mat Slots Evolved 2 | . . . 2 Power . | . . . . Propulsion . | . . . . Utility 2 | . . . 2 Weapon . | . . . . Parts Attached 13 | 5 2 . 6 Power 1 | 1 . . . Engine 1 | 1 . . . Core . | . . . . Reactor . | . . . . Propulsion 3 | 2 . . 1 Treads . | . . . . Leg 1 | . . . 1 Wheel 2 | 2 . . . Hover . | . . . . Flight . | . . . . Utility 3 | 1 1 . 1 Device . | . . . . Storage 3 | 1 1 . 1 Processor . | . . . . Hackware . | . . . . Protection . | . . . . Artifact . | . . . . Weapon 6 | 1 1 . 4 Energy Gun 3 | 1 . . 2 Energy Cannon 1 | . . . 1 Ballistic Gun . | . . . . Ballistic Cannon . | . . . . Launcher 1 | . 1 . . Special Weapon . | . . . . Impact Weapon 1 | . . . 1 Slashing Weapon . | . . . . Piercing Weapon . | . . . . Special Melee Weapon . | . . . . Unidentified Prototypes 2 | . . . 2 Parts Lost 5 | . 1 4 . Power 1 | . . 1 . Propulsion 2 | . . 2 . Utility . | . . . . Weapon 2 | . 1 1 . Highest Loss Streak 4 | . 1 4 . To Critical Strikes . | . . . . Average Slot Usage (%) 47 | . 75 42 38 Engine 3 | . 14 4 . Leg 4 | . . . 5 Wheel 7 | . 28 9 . Storage 15 | . 18 23 13 Energy Gun 11 | . 6 . 13 Energy Cannon 2 | . . . 3 Launcher 1 | . 7 4 . Impact Weapon 1 | . . . 2 Naked Turns . | . . . . Heaviest Build 51 | 10 51 51 32 Greatest Support 20 | 20 20 20 10 Greatest Overweight (x) 5 | . 2 5 3 Average Overweight (x) 1 | . . 1 2 Largest Inventory Capacity 20 | 8 20 20 15 Average Capacity 10 | 6 12 15 9 Most Carried 6 | 5 2 2 6 Average Carried 3 | 1 . 2 3 Final Capacity 20 | 8 20 8 15 Final Carried 5 | . 2 2 5 Class Distribution -------------------- 100% | Mutant Dominant Class ---------------- Mutant | -10/Materials Mutant | -10/Mines Mutant | -9/Materials Resources | -11 -10 -10 -9 ----------- Run | Yrd Mat Min Mat Matter Collected 422 | 98 128 . 196 Remotely . | . . . . Salvage Created 827 | . 164 11 652 Parts 40 | . 7 2 31 Haulers Intercepted 4 | . 1 . 3 Recyclers Shooed . | . . . . Parts Field Recycled . | . . . . Retrieved Matter . | . . . . Parts Self-Destructed . | . . . . Prevented . | . . . . Kills | -11 -10 -10 -9 ------- Run | Yrd Mat Min Mat Combat Hostiles Destroyed 16 | . 4 1 11 Melee 2 | . . . 2 Guns 8 | . . . 8 AOE 5 | . 4 1 . Classes Destroyed 7 | . 3 1 3 Worker 2 | . . . 2 Hauler 4 | . 1 . 3 Operator 1 | . 1 . . Watcher 1 | . . . 1 Swarmer 1 | . . 1 . Grunt 13 | . 4 . 9 Sentry 2 | . . . 2 Best Kill Streak 4 | . 4 1 4 Combat Bots Only 2 | . 2 1 2 Max Kills in Single Turn 2 | . 1 1 2 Gunslinging . | . . . . Exploded 1 | . 1 1 . Melee 1 | . . . 1 Uniques/NPCs Destroyed . | . . . . Combat | -11 -10 -10 -9 -------- Run | Yrd Mat Min Mat Hostile Shots Fired 86 | . 31 14 41 Missed 20 | . 13 . 7 Damage Taken 888 | . 263 164 461 Core 409 | . 58 97 254 Absorbed by Shields . | . . . . Core Remaining (%) 69 | 100 . 38 . Volleys Fired 47 | . 24 2 21 Largest 2 | . 1 1 2 Hottest 124 | . 40 30 124 Shots Fired 68 | . 24 2 42 Gun 52 | . 11 . 41 Cannon 1 | . . . 1 Launcher 15 | . 13 2 . Special . | . . . . Kinetic . | . . . . Thermal 42 | . . . 42 Explosive 15 | . 13 2 . Electromagnetic 11 | . 11 . . Robot Hit Streak 8 | . 5 5 8 Robot Miss Streak 4 | . 2 . 4 Penetration Max . | . . . . Secondary Targets . | . . . . Shots Hit Robots 50 | . 15 1 34 Core Hits 27 | . 11 2 14 Critical Kills . | . . . . Critical Parts Destroyed 4 | . . . 4 Critical Strikes 9 | . . . 9 Burn 5 | . . . 5 Smash 4 | . . . 4 Melee Attacks 16 | . . . 16 Impact 16 | . . . 16 Slashing . | . . . . Piercing . | . . . . Sneak Attacks 2 | . . . 2 Combat Hostiles . | . . . . Follow-up Attacks . | . . . . Damage Inflicted 1489 | . 552 104 833 Guns 493 | . 91 . 402 Cannons 20 | . . . 20 Explosions 565 | . 461 104 . Melee 411 | . . . 411 Ramming . | . . . . Kinetic . | . . . . Thermal 422 | . . . 422 Explosive 565 | . 461 104 . Electromagnetic 91 | . 91 . . Impact 411 | . . . 411 Slashing . | . . . . Piercing . | . . . . Highest Corruption . | . . . . Average Corruption . | . . . . Corruption Purged . | . . . . Corruption Blocked . | . . . . Overload Shots . | . . . . Overflow Damage 233 | . 1 30 202 Projectiles . | . . . . Explosions 31 | . 1 30 . Melee 202 | . . . 202 Knockbacks . | . . . . Impact . | . . . . Kinetic . | . . . . Secondary . | . . . . Self-Inflicted Damage 91 | . 40 51 . Shots 3 | . 1 2 . Rammed . | . . . . Targets Rammed . | . . . . Kicked . | . . . . Crushed . | . . . . Highest Temperature 149 | . 66 . 149 Average Temperature 44 | . 28 . 49 Received Heat Transfer 339 | . 120 . 219 Siege Activations . | . . . . Robots Corrupted . | . . . . Combat Hostiles . | . . . . Parts Fried 2 | . . . 2 Impact Corruptions 5 | . . . 5 Robots Melted . | . . . . Combat Hostiles . | . . . . Parts Melted 2 | . . . 2 Heat Transferred 1295 | . . . 1295 Parts Sabotaged . | . . . . Parts Stolen . | . . . . Parts Stripped . | . . . . Power Chain Reactions . | . . . . Alert | -11 -10 -10 -9 ------- Run | Yrd Mat Min Mat Peak Influence 405 | . 232 97 405 Initial 90 | . . 90 37 Average 172 | . 91 91 213 Maximum Alert Level 2 | . 1 . 2 Low Security (%) 49 | 100 88 100 31 Level 1 49 | . 11 . 67 Level 2 . | . . . . Level 3 . | . . . . Level 4 . | . . . . Level 5 . | . . . . High Security . | . . . . Max Security . | . . . . Squads Dispatched 6 | . 3 . 3 Investigation 4 | . 2 . 2 Extermination . | . . . . Reinforcement 2 | . 1 . 1 Assault . | . . . . Garrison . | . . . . Intercept . | . . . . Searches Triggered . | . . . . Construction Impeded . | . . . . Haulers Reinforced . | . . . . Active Scanning Responses . | . . . . Cargo Convoy Interrupts . | . . . . Stealth | -11 -10 -10 -9 --------- Run | Yrd Mat Min Mat Distress Signals 2 | . . . 2 Communications Jammed . | . . . . Distress Signals . | . . . . Times Spotted 27 | . 9 3 15 Peak Tracking Total 3 | . 3 3 2 Tactical Retreats . | . . . . Traps | -11 -10 -10 -9 ------- Run | Yrd Mat Min Mat Traps Triggered . | . . . . Indirectly . | . . . . Trap Hack Attempts . | . . . . Triggered . | . . . . Disarmed . | . . . . Reprogrammed . | . . . . Reused . | . . . . Traps Extracted . | . . . . Installed . | . . . . Triggered . | . . . . Machines | -11 -10 -10 -9 ---------- Run | Yrd Mat Min Mat Machines Disabled 4 | . 3 1 . Max in Single Turn 1 | . 1 1 . Machines Repaired . | . . . . Machines Dismantled . | . . . . Machines Sabotaged . | . . . . Overloaded Fab Kills . | . . . . Hacking | -11 -10 -10 -9 --------- Run | Yrd Mat Min Mat Machines Accessed 5 | . 3 . 2 Terminals 4 | . 2 . 2 Fabricators . | . . . . Repair Stations . | . . . . Recycling Units 1 | . 1 . . Scanalyzers . | . . . . Garrison Access . | . . . . Total Hacks 15 | . 9 . 6 Successful 5 | . 4 . 1 Failed 10 | . 5 . 5 Catastrophic 2 | . 1 . 1 Database Lockouts . | . . . . Manual 15 | . 9 . 6 Terminals 14 | . 8 . 6 Fabricators . | . . . . Repair Stations . | . . . . Recycling Units 1 | . 1 . . Scanalyzers . | . . . . Garrison Access . | . . . . Terminal Hacks 2 | . 1 . 1 Level Access Points 1 | . . . 1 Branch Access Points 1 | . 1 . . Fabricator Hacks . | . . . . Repair Station Hacks . | . . . . Recycling Unit Hacks . | . . . . Scanalyzer . | . . . . Garrison Access Hacks . | . . . . Unauthorized Hacks 3 | . 3 . . Terminals 2 | . 2 . . Assimilate 1 | . 1 . . Botnet 1 | . 1 . . Fabricators . | . . . . Repair Stations . | . . . . Recycling Units 1 | . 1 . . Monitor 1 | . 1 . . Scanalyzers . | . . . . Garrison Access . | . . . . Data Cores Recovered . | . . . . Used . | . . . . Hacking Detections 4 | . 2 . 2 Full Trace Events 4 | . 2 . 2 Feedback Events . | . . . . Feedback Blocked . | . . . . Robot Schematics Acquired . | . . . . Robots Built . | . . . . Authchips . | . . . . Time . | . . . . Total Robot Build Rating . | . . . . Part Schematics Acquired . | . . . . Parts Built . | . . . . Authchips . | . . . . Time . | . . . . Total Part Build Rating . | . . . . Parts Repaired . | . . . . Time . | . . . . Parts Recycled . | . . . . Recycled Matter . | . . . . Retrieved Matter . | . . . . Retrieved Components . | . . . . Parts Scanalyzed . | . . . . Part Schematics Acquired . | . . . . Parts Damaged . | . . . . Bothacking | -11 -10 -10 -9 ------------ Run | Yrd Mat Min Mat Used RIF Installer . | . . . . Robots Hacked . | . . . . Non-combat . | . . . . Combat . | . . . . Robot Hacks Applied . | . . . . Relay Couplers Released . | . . . . Fabnet Peak Effective % . | . . . . Robots Rewired . | . . . . Allies Hacked . | . . . . Hacks Repelled . | . . . . Allies | -11 -10 -10 -9 -------- Run | Yrd Mat Min Mat Total Allies 1 | . 1 . . Largest Group 1 | . 1 1 1 Highest-Rated Group 10 | . 10 10 10 Highest-Rated Ally 10 | . 10 10 10 Total Orders . | . . . . Ally Attacks . | . . . . Total Damage . | . . . . Kills . | . . . . Allies Corrupted . | . . . . Allies Melted . | . . . . Intel | -11 -10 -10 -9 ------- Run | Yrd Mat Min Mat Robot Analysis Total . | . . . . Derelict Logs Recovered . | . . . . Drone Launches . | . . . . Drone Recoveries . | . . . . Exploration | -11 -10 -10 -9 ------------- Run | Yrd Mat Min Mat Turns Passed 881 | 32 212 25 612 Spaces Moved 461 | 35 178 19 229 Core 141 | 19 . 9 113 Treads . | . . . . Legs 116 | . . . 116 Wheels 204 | 16 178 10 . Hover . | . . . . Flight . | . . . . Fastest Speed 50 | 50 80 100 100 Average Speed 144 | 63 88 110 204 Slowest Speed 330 | 80 110 155 330 Overloaded Moves . | . . . . Propulsion Burnouts . | . . . . Robots Hopped . | . . . . Cave-ins Triggered . | . . . . Exploration Rate (%) 19 | 3 38 9 29 Regions Visited 3 Branch Regions 1 Pre-discovered Areas . | . . . . Known Exits Taken 1 | . 1 . . Unknown Exits Taken 2 | 1 . 1 . Scrap Searched . | . . . . Spaces Dug . | . . . . Terrain Destroyed 54 | . 40 14 . Melee . | . . . . Projectile . | . . . . AOE 54 | . 40 14 . Terrain Rammed . | . . . . Walls Destroyed . | . . . . Machines Disabled . | . . . . Actions | -11 -10 -10 -9 --------- Run | Yrd Mat Min Mat Total 572 | 44 209 21 298 Wait 21 | . 2 . 19 Move 458 | 34 177 18 229 Hop . | . . . . Pick Up 16 | 5 4 . 7 Fast Attach . | . . . . Attach 11 | 5 2 . 4 Detach . | . . . . Swap 2 | . . . 2 Drop 1 | . . 1 . Fire 47 | . 24 2 21 Melee 16 | . . . 16 Ram . | . . . . Kick . | . . . . Crush . | . . . . Escape Stasis . | . . . . Rewire . | . . . . Trap . | . . . . Miscellaneous . | . . . . Route ------- -11/Scrapyard -10/Materials -10/Mines -9/Materials (discovered 4 exits: Mat x3 / [*Min]) History --------- Turn | Location | Event 23 | -11/Scrapyard | Discovered new exit (range 14) 33 | -11/Scrapyard | Entered Materials 136 | -10/Materials | Identified exit to Mines 245 | -10/Materials | Entered Mines 245 | -10/Mines | Accompanied by 1 ally 262 | -10/Mines | Discovered new exit (range 7) 268 | -10/Mines | Core integrity fell below 50% 270 | -10/Mines | Entered Materials 270 | -9/Materials | Accompanied by 1 ally 270 | -9/Materials | Evolved 2 slots: Utility x2 290 | -9/Materials | Lost 4 parts (1p2n1w) 313 | -9/Materials | Build established: Mutant 375 | -9/Materials | Core integrity fell below 50% 456 | -9/Materials | Identified exit to Materials 866 | -9/Materials | Discovered new exit (range 8) 882 | -9/Materials | Self-destructed Last Messages --------------- 00611_ K-01 Serf collects debris. 00612_ R-06 Scavenger collects Aluminum Leg. 00615_ K-01 Serf collects debris. 00620_ G-34 Mercenary destroyed. 00621_ K-01 Serf collects debris. 00659_ A-02 Transporter destroyed. 00662_ K-01 Serf collects debris. 00664_ U-05 Engineer builds a Door. 00666_ Acquired Prototype Energy Cannon. 00666_ K-01 Serf collects debris. 00667_ Identified Adv. Beam Cannon. 00673_ K-01 Serf collects debris. 00689_ R-06 Scavenger collects Lgt. Treads. 00713_ K-01 Serf collects debris. 00735_ Acquired Lrg. Storage Unit. 00735_ K-01 Serf collects debris. 00791_ K-01 Serf cleans the Nuclear Reactor. 00866_ EXIT=FOUND 00872_ K-01 Serf cleans the Repair Station. Map ----- +----------------------------------------------------+ | ?????????????????????????????????????????????????? | | ?????????????????????????????????????????????????? | | ?????????????????????????????????????????????????? | | ?????????????????????????????????????????????????? | | ?????????????????????????????????????????????????? | | ?????????????????????????????????????????????????? | | ?????????????????????????????????????????????????? | | ?????????????????????????????????????????????????? | | ?????????????????????????????????????????????????? | | ?????????????????????????????????????????????????? | | ???????????????????????? ??????????????????????? | | ???????????????????????? ??????????????????????? | | ???????????????????????? ??????????????????????? | | ???????????????????????# #?????????????????????? | | ???????????????????????# #?????????????????????? | | ???????????????????????# #?????????????????????? | | ???????????????????????+ #?????????????????????? | | ???????????????????????# #?????????????????????? | | ??????????????????????## ####??????????????????? | | ??????????????????????# "#??????????????????? | | ??????????????????????# ""#??????????????????? | | ??????????????????????# ||#??????????????????? | | ??????????????????????# < ""#??????????????????? | | ??????????????????????# !!#??????????????????? | | ??????????????????????# ""#??????????????????? | | ??????????????????????# @ "#??????????????????? | | ??????????############## ####?????? ??????????? | | ??????????# # ##### ?????????? | | ??????????# + ?????????? | | ??????????# !! # ?????????? | | ??????????# !! # """ ?????????? | | ########??# ## "R """??????????? | | #??#+##+##########^ """ ""???????????? | | """ #### #######??# "????????????? | | """ + k ????????????? | | """ ########### k ???????????? | | #????? +?????? k ?? ????????????? | | #?????" #??????/#########???????????????? | | #??#""" #?????? ????????????????????????? | | ""T"" #??#""" #?????? ????????????????????????? | | """"" #??# #?????? ????????????????????????? | | ########??#""" #?????? ????????????????????????? | | [########""" #???????????????????????????????? | | [% #""" #???????????????????????????????? | | ![= / #?????######????????????????????? | | ! %] #""" #????? ##???????????????????? | | %% ## [][ #""" #????? ????????????????????? | | +#### * #""" #????? ????????????????????? | | %! # # * #????? ?????????????????????? | | # ####+###????? ?????????????????????? | +----------------------------------------------------+ Best States ------------- Heat Dissipation 28 Energy Generation 10 Energy Capacity 125 Matter Stores 297 Matter Capacity 300 Sight Range 16 Terrain Scan Density 10 Evasion (%) 50 Item Schematics ----------------- None Robot Schematics ------------------ None Fabricated ------------ Nothing Alien Tech Used ----------------- None Achievements -------------- None Challenges ------------ None Game ------ Seed LightningZioniteShield Manual? 0 Play Time 00:10:40 Cumulative 106.5 hours Start 2024.03.31 @ 16:24:23 End 2024.03.31 @ 16:35:21 Sessions 1 Manual Loads 0 Difficulty Rogue Special Mode None Game No. 106 Rogue 103 Adventurer 0 Explorer 3 Win Type - Total 0 Types 0/0/0/0/0/0/0/0/0 Lore% 31 Gallery% 47 Achievement% 33 Wizard Run 0 Options --------- Layout 1 ASCII 0 Keyboard 0 Movement Mouse Keybinds 0 Fullscreen 2 Font 48/Terminus Map View 50x35 Zoom Use 0% Tactical HUD 1 Map Filters NONE Filters NONE Steam 1 RUN: 5c7e3890-d341-4ae4-af0f-2d1bdd08fcaa